[Event "Kragero Resort A 2020"]
[Site "Kragero"]
[Date "2020.02.22"]
[Round "7.24"]
[White "Doluhanova, Evgeniya"]
[Black "Kvaloy, Aksel Bu"]
[Result "1-0"]
[ECO "A12"]
[WhiteElo "2258"]
[BlackElo "2174"]
[Annotator "ChessBase"]
[PlyCount "97"]
[EventDate "2020.02.19"]
[EventType "swiss"]
[EventCountry "NOR"]
[SourceTitle "playchess.com"]
[Source "ChessBase"]
[SourceQuality "1"]
[TimeControl "5400+30"]

1. Nf3 {[%emt 0:04:58]} d5 {[%emt 0:00:00]} 2. b3 {[%emt 0:00:17]} c6 {[%emt 0:01:11]} 3. Bb2 {[%emt 0:00:05]} Nf6 {[%emt 0:00:19]} 4. c4 {[%emt 0:02:30]} Bg4 {[%emt 0:01:02]} 5. e3 {[%emt 0:02:27]} e6 {[%emt 0:00:40]} 6. h3 {[%emt 0:01:02]} Bh5 {[%emt 0:01:04]} 7. Be2 {[%emt 0:01:09]} h6 {[%emt 0:00:55]} 8. d3 {[%emt 0:01:20]} Nbd7 {[%emt 0:00:26]} 9. Nbd2 {[%emt 0:00:44]} Bg6 {[%emt 0:01:39]} 10. O-O {[%emt 0:01:30]} Bd6 {[%emt 0:00:20]} 11. e4 {[%emt 0:07:33]} dxe4 {[%emt 0:07:03]} 12. Nxe4 {[%emt 0:02:33]} Bxe4 {[%emt 0:04:12]} 13. dxe4 {[%emt 0:00:08]} Qc7 {[%emt 0:00:33]} 14. Qc2 {[%emt 0:02:59]} O-O {[%emt 0:08:53]} 15. Rfd1 {[%emt 0:05:46]} e5 {[%emt 0:01:42]} 16. a3 {[%emt 0:14:52]} a5 {[%emt 0:03:36]} 17. Bc3 {[%emt 0:13:29]} Nc5 {[%emt 0:13:03]} 18. Bd3 {[%emt 0:09:54]} Qe7 {[%emt 0:16:00]} 19. Rab1 {[%emt 0:08:06]} Rfd8 {[%emt 0:03:40]} 20. b4 {[%emt 0:01:03]} Nxd3 {[%emt 0:07:38]} 21. Rxd3 {[%emt 0:00:24]} axb4 {[%emt 0:02:18]} 22. axb4 {[%emt 0:00:16]} Nh5 {[%emt 0:01:41]} 23. g3 {[%emt 0:10:10]} Qe6 {[%emt 0:02:59]} 24. Rbd1 {[%emt 0:07:08]} Qxc4 {[%emt 0:07:30]} 25. Nxe5 {[%emt 0:00:15]} Qxe4 {[%emt 0:01:36]} 26. Qb3 {[%emt 0:00:26]} Bxe5 {[%emt 0:07:06]} 27. Rxd8+ {[%emt 0:00:05]} Kh7 {[%emt 0:00:01]} 28. Bxe5 {[%emt 0:01:41]} Rxd8 {[%emt 0:00:50]} 29. Rxd8 {[%emt 0:00:06]} Qxe5 {[%emt 0:00:21]} 30. Qd3+ {[%emt 0:00:37]} g6 {[%emt 0:00:06]} 31. Rd7 {[%emt 0:00:54]} Kg7 {[%emt 0:05:24]} 32. Rxb7 {[%emt 0:00:17]} Nf6 {[%emt 0:00:38]} 33. Qf3 {[%emt 0:00:37]} Qe6 {[%emt 0:00:24]} 34. Qe3 {[%emt 0:01:00]} Qd5 {[%emt 0:01:17]} 35. Re7 {[%emt 0:00:14]} Qd6 {[%emt 0:00:40]} 36. Qc5 {[%emt 0:00:39]} Qd1+ {[%emt 0:00:02]} 37. Kg2 {[%emt 0:00:05]} Qd8 {[%emt 0:01:01]} 38. Ra7 {[%emt 0:00:28]} Qb8 {[%emt 0:00:37]} 39. Qe7 {[%emt 0:00:25]} Qg8 {[%emt 0:00:21]} 40. Rc7 {[%emt 0:01:07]} Nd5 {[%emt 0:00:26]} 41. Qe5+ {[%emt 0:00:05]} Kh7 {[%emt 0:00:05]} 42. Rb7 {[%emt 0:00:30]} Qf8 {[%emt 0:00:44]} 43. Rb8 {[%emt 0:00:32]} Qg7 {[%emt 0:00:24]} 44. Qe8 {[%emt 0:00:48]} h5 {[%emt 0:00:54]} 45. Rb7 {[%emt 0:00:12]} Qb2 {[%emt 0:00:35]} 46. Rxf7+ {[%emt 0:00:23]} Kh6 {[%emt 0:00:02]} 47. Qf8+ {[%emt 0:00:15]} Kg5 {[%emt 0:00:05]} 48. h4+ {[%emt 0:00:03]} Kg4 {[%emt 0:00:09]} 49. Qc8# {[%emt 0:00:17]} 1-0

[Event "Kragero Resort A 2020"]
[Site "Kragero"]
[Date "2020.02.22"]
[Round "7.25"]
[White "Heimisson, Hilmir Freyr"]
[Black "Skotheim, Andreas"]
[Result "1-0"]
[ECO "A81"]
[WhiteElo "2250"]
[BlackElo "2140"]
[Annotator "ChessBase"]
[PlyCount "133"]
[EventDate "2020.02.19"]
[EventType "swiss"]
[EventCountry "NOR"]
[SourceTitle "playchess.com"]
[Source "ChessBase"]
[SourceQuality "1"]
[TimeControl "5400+30"]

1. d4 {[%emt 0:01:22]} f5 {[%emt 0:00:00]} 2. g3 {[%emt 0:00:28]} Nf6 {[%emt 0:00:21]} 3. Bg2 {[%emt 0:00:04]} g6 {[%emt 0:00:38]} 4. c3 {[%emt 0:00:29]} Nc6 {[%emt 0:06:32]} 5. h4 {[%emt 0:07:21]} e5 {[%emt 0:03:45]} 6. dxe5 {[%emt 0:03:41]} Nxe5 {[%emt 0:00:14]} 7. Nh3 {[%emt 0:13:42]} c6 {[%emt 0:08:21]} 8. Nf4 {[%emt 0:16:04]} d5 {[%emt 0:26:53]} 9. Nd2 {[%emt 0:01:01]} Bd6 {[%emt 0:02:52]} 10. Nf3 {[%emt 0:02:05]} Nfg4 {[%emt 0:02:43]} 11. Nxe5 {[%emt 0:04:11]} Nxe5 {[%emt 0:01:42]} 12. Nd3 {[%emt 0:02:56]} Qf6 {[%emt 0:07:39]} 13. Bg5 {[%emt 0:01:26]} Qg7 {[%emt 0:00:41]} 14. Nxe5 {[%emt 0:01:28]} Bxe5 {[%emt 0:00:27]} 15. Qd2 {[%emt 0:03:15]} h6 {[%emt 0:05:21]} 16. Be3 {[%emt 0:00:05]} Be6 {[%emt 0:01:36]} 17. O-O-O {[%emt 0:01:35]} b6 {[%emt 0:05:25]} 18. Kb1 {[%emt 0:01:30]} O-O-O {[%emt 0:01:17]} 19. Bf3 {[%emt 0:12:52]} Bf6 {[%emt 0:04:08]} 20. Bd4 {[%emt 0:05:21]} g5 {[%emt 0:01:28]} 21. Bxf6 {[%emt 0:01:38]} Qxf6 {[%emt 0:00:06]} 22. Qd4 {[%emt 0:00:39]} Qxd4 {[%emt 0:00:57]} 23. Rxd4 {[%emt 0:00:10]} Kc7 {[%emt 0:00:45]} 24. e3 {[%emt 0:00:27]} a5 {[%emt 0:03:29]} 25. Kc2 {[%emt 0:00:42]} Kd6 {[%emt 0:00:57]} 26. c4 {[%emt 0:03:23]} Kc5 {[%emt 0:01:24]} 27. cxd5 {[%emt 0:00:49]} Bxd5 {[%emt 0:00:18]} 28. Bxd5 {[%emt 0:00:05]} cxd5 {[%emt 0:00:12]} 29. Kd3 {[%emt 0:01:34]} Kd6 {[%emt 0:00:43]} 30. hxg5 {[%emt 0:07:22]} hxg5 {[%emt 0:00:08]} 31. Rxh8 {[%emt 0:00:01]} Rxh8 {[%emt 0:00:06]} 32. g4 {[%emt 0:00:01]} Rf8 {[%emt 0:02:24]} 33. Ke2 {[%emt 0:01:14]} Ke5 {[%emt 0:01:45]} 34. gxf5 {[%emt 0:01:04]} Rxf5 {[%emt 0:00:07]} 35. Rg4 {[%emt 0:01:07]} Kf6 {[%emt 0:00:55]} 36. b4 {[%emt 0:02:33]} a4 {[%emt 0:04:12]} 37. b5 {[%emt 0:00:04]} d4 {[%emt 0:00:24]} 38. Rxd4 {[%emt 0:00:16]} Rxb5 {[%emt 0:00:12]} 39. Rxa4 {[%emt 0:00:03]} Rb2+ {[%emt 0:00:32]} 40. Kf3 {[%emt 0:00:09]} Kf5 {[%emt 0:00:39]} 41. a3 {[%emt 0:01:02]} Rb3 {[%emt 0:00:58]} 42. Rb4 {[%emt 0:00:51]} Rxa3 {[%emt 0:00:13]} 43. Rb5+ {[%emt 0:00:16]} Kf6 {[%emt 0:01:18]} 44. Rxb6+ {[%emt 0:00:03]} Kf5 {[%emt 0:00:32]} 45. Rb5+ {[%emt 0:00:26]} Kf6 {[%emt 0:00:18]} 46. Ke4 {[%emt 0:01:46]} Ra4+ {[%emt 0:00:49]} 47. Kf3 {[%emt 0:02:53]} Ra3 {[%emt 0:00:09]} 48. Rd5 {[%emt 0:00:13]} Rb3 {[%emt 0:01:33]} 49. Kg4 {[%emt 0:00:27]} Rb4+ {[%emt 0:00:07]} 50. Rd4 {[%emt 0:00:04]} Rb2 {[%emt 0:01:18]} 51. Kg3 {[%emt 0:00:50]} Rb3 {[%emt 0:00:42]} 52. Re4 {[%emt 0:01:07]} Ra3 {[%emt 0:00:49]} 53. f3 {[%emt 0:00:50]} Ra2 {[%emt 0:01:18]} 54. Rb4 {[%emt 0:00:15]} Ra3 {[%emt 0:01:28]} 55. Rb6+ {[%emt 0:00:11]} Ke5 {[%emt 0:00:42]} 56. Rb5+ {[%emt 0:00:07]} Kf6 {[%emt 0:00:06]} 57. e4 {[%emt 0:00:04]} Ra2 {[%emt 0:00:43]} 58. Rb6+ {[%emt 0:00:17]} Kf7 {[%emt 0:01:35]} 59. Rd6 {[%emt 0:00:25]} Ra3 {[%emt 0:00:56]} 60. Kg4 {[%emt 0:00:17]} Rb3 {[%emt 0:01:32]} 61. Rd5 {[%emt 0:00:21]} Kf6 {[%emt 0:00:29]} 62. Rf5+ {[%emt 0:00:04]} Ke6 {[%emt 0:00:16]} 63. Kxg5 {[%emt 0:00:06]} Rb1 {[%emt 0:00:14]} 64. Kf4 {[%emt 0:00:06]} Re1 {[%emt 0:00:11]} 65. Ra5 {[%emt 0:00:05]} Re2 {[%emt 0:00:11]} 66. Ra6+ {[%emt 0:00:04]} Ke7 {[%emt 0:00:07]} 67. Kf5 {[%emt 0:00:09]} 1-0

[Event "Kragero Resort A 2020"]
[Site "Kragero"]
[Date "2020.02.22"]
[Round "7.26"]
[White "Stanford, Sheila Barth"]
[Black "Nordquelle, Daniel"]
[Result "0-1"]
[ECO "D00"]
[WhiteElo "2145"]
[BlackElo "2242"]
[Annotator "ChessBase"]
[PlyCount "112"]
[EventDate "2020.02.19"]
[EventType "swiss"]
[EventCountry "NOR"]
[SourceTitle "playchess.com"]
[Source "ChessBase"]
[SourceQuality "1"]
[TimeControl "5400+30"]

1. d4 {[%emt 0:04:11]} d5 {[%emt 0:00:00]} 2. Bf4 {[%emt 0:00:09]} Nf6 {[%emt 0:00:00]} 3. e3 {[%emt 0:00:14]} c5 {[%emt 0:00:00]} 4. Nc3 {[%emt 0:00:44]} Nc6 {[%emt 0:01:11]} 5. Nb5 {[%emt 0:03:08]} Kd7 {[%emt 0:14:16]} 6. dxc5 {[%emt 0:09:01]} e6 {[%emt 0:05:29]} 7. Bc7 {[%emt 0:02:46]} Qe8 {[%emt 0:06:20]} 8. Bd6 {[%emt 0:03:43]} Qd8 {[%emt 0:03:55]} 9. Bc7 {[%emt 0:10:14]} Qe8 {[%emt 0:00:44]} 10. Bg3 {[%emt 0:00:41]} Qd8 {[%emt 0:08:25]} 11. Nc7 {[%emt 0:13:58]} Rb8 {[%emt 0:00:04]} 12. Nb5 {[%emt 0:03:55]} Ra8 {[%emt 0:01:51]} 13. Nf3 {[%emt 0:00:23]} Bxc5 {[%emt 0:02:07]} 14. Ne5+ {[%emt 0:00:49]} Nxe5 {[%emt 0:06:33]} 15. Bxe5 {[%emt 0:00:03]} a6 {[%emt 0:01:00]} 16. Nd4 {[%emt 0:05:48]} Ke7 {[%emt 0:02:01]} 17. Bd3 {[%emt 0:00:25]} Ne8 {[%emt 0:03:41]} 18. c3 {[%emt 0:01:27]} f6 {[%emt 0:00:54]} 19. Bg3 {[%emt 0:00:08]} Nd6 {[%emt 0:01:34]} 20. Qg4 {[%emt 0:01:02]} Kf7 {[%emt 0:02:31]} 21. Nb3 {[%emt 0:06:08]} Ba7 {[%emt 0:07:23]} 22. Bxd6 {[%emt 0:02:34]} Qxd6 {[%emt 0:00:16]} 23. Qh5+ {[%emt 0:00:08]} Ke7 {[%emt 0:06:09]} 24. g4 {[%emt 0:00:30]} h6 {[%emt 0:04:09]} 25. g5 {[%emt 0:10:46]} fxg5 {[%emt 0:01:35]} 26. h4 {[%emt 0:00:04]} Bd7 {[%emt 0:04:42]} 27. hxg5 {[%emt 0:00:10]} Qe5 {[%emt 0:00:11]} 28. gxh6 {[%emt 0:02:31]} Qxh5 {[%emt 0:00:43]} 29. Rxh5 {[%emt 0:00:02]} Rxh6 {[%emt 0:00:19]} 30. Rg5 {[%emt 0:01:22]} Kf6 {[%emt 0:00:38]} 31. Rg1 {[%emt 0:00:15]} g5 {[%emt 0:01:59]} 32. Be2 {[%emt 0:02:26]} Rh2 {[%emt 0:00:52]} 33. Nd2 {[%emt 0:01:49]} Rg8 {[%emt 0:00:39]} 34. Rd1 {[%emt 0:01:00]} Ba4 {[%emt 0:02:08]} 35. b3 {[%emt 0:00:19]} Bc6 {[%emt 0:00:30]} 36. c4 {[%emt 0:03:00]} dxc4 {[%emt 0:00:17]} 37. Nxc4 {[%emt 0:00:13]} Bc5 {[%emt 0:01:31]} 38. Bg4 {[%emt 0:00:31]} Rf8 {[%emt 0:02:28]} 39. Rf1 {[%emt 0:08:22]} Ke7 {[%emt 0:00:39]} 40. a3 {[%emt 0:00:47]} Bg2 {[%emt 0:03:45]} 41. Ne5 {[%emt 0:01:50]} Rf6 {[%emt 0:01:11]} 42. Rg1 {[%emt 0:00:53]} Bxa3 {[%emt 0:00:15]} 43. Rd7+ {[%emt 0:01:26]} Ke8 {[%emt 0:00:05]} 44. Rg7 {[%emt 0:00:31]} Bd5 {[%emt 0:01:08]} 45. Rg8+ {[%emt 0:00:45]} Ke7 {[%emt 0:00:34]} 46. f4 {[%emt 0:00:38]} Bb4+ {[%emt 0:00:59]} 47. Kf1 {[%emt 0:00:46]} gxf4 {[%emt 0:00:23]} 48. e4 {[%emt 0:00:44]} Bxe4 {[%emt 0:00:22]} 49. Rg7+ {[%emt 0:00:06]} Kd6 {[%emt 0:00:40]} 50. Nc4+ {[%emt 0:00:43]} Kc6 {[%emt 0:00:15]} 51. Be2 {[%emt 0:00:41]} f3 {[%emt 0:00:06]} 52. Ne5+ {[%emt 0:00:03]} Kd5 {[%emt 0:00:15]} 53. Nxf3 {[%emt 0:01:02]} Bxf3 {[%emt 0:00:22]} 54. R1g5+ {[%emt 0:00:02]} Kd6 {[%emt 0:00:28]} 55. Bxf3 {[%emt 0:00:09]} Rxf3+ {[%emt 0:00:19]} 56. Kg1 {[%emt 0:00:01]} Rb2 {[%emt 0:00:28]} 0-1

[Event "Kragero Resort A 2020"]
[Site "Kragero"]
[Date "2020.02.22"]
[Round "7.27"]
[White "Ingebretsen, Jens E"]
[Black "Mansoor, Afras"]
[Result "1-0"]
[ECO "C55"]
[WhiteElo "2241"]
[BlackElo "2105"]
[Annotator "ChessBase"]
[PlyCount "55"]
[EventDate "2020.02.19"]
[EventType "swiss"]
[EventCountry "NOR"]
[SourceTitle "playchess.com"]
[Source "ChessBase"]
[SourceQuality "1"]
[TimeControl "5400+30"]

1. e4 {[%emt 0:00:41]} e5 {[%emt 0:00:00]} 2. Nf3 {[%emt 0:00:07]} Nc6 {[%emt 0:00:00]} 3. Bc4 {[%emt 0:00:09]} Bc5 {[%emt 0:00:06]} 4. O-O {[%emt 0:00:11]} Nf6 {[%emt 0:00:09]} 5. d3 {[%emt 0:00:04]} O-O {[%emt 0:00:10]} 6. c3 {[%emt 0:00:13]} d5 {[%emt 0:00:14]} 7. exd5 {[%emt 0:00:12]} Nxd5 {[%emt 0:00:05]} 8. Re1 {[%emt 0:00:56]} Bg4 {[%emt 0:00:09]} 9. h3 {[%emt 0:01:51]} Bh5 {[%emt 0:00:17]} 10. Nbd2 {[%emt 0:00:46]} Nb6 {[%emt 0:00:18]} 11. Bb5 {[%emt 0:00:24]} Bd6 {[%emt 0:00:06]} 12. a4 {[%emt 0:05:14]} a6 {[%emt 0:08:03]} 13. Bxc6 {[%emt 0:00:10]} bxc6 {[%emt 0:00:05]} 14. Ne4 {[%emt 0:00:34]} f5 {[%emt 0:00:26]} 15. Ng3 {[%emt 0:03:39]} Bxf3 {[%emt 0:00:07]} 16. Qxf3 {[%emt 0:00:10]} Qd7 {[%emt 0:00:03]} 17. Nf1 {[%emt 0:13:22]} Rae8 {[%emt 0:06:49]} 18. Be3 {[%emt 0:05:46]} Nd5 {[%emt 0:14:24]} 19. Rad1 {[%emt 0:01:19]} Ne7 {[%emt 0:02:22]} 20. a5 {[%emt 0:03:37]} Ng6 {[%emt 0:01:34]} 21. Bc1 {[%emt 0:02:59]} Rf7 {[%emt 0:12:43]} 22. Ne3 {[%emt 0:05:25]} Bc5 {[%emt 0:06:11]} 23. Nc4 {[%emt 0:04:30]} Qe6 {[%emt 0:00:40]} 24. Qe2 {[%emt 0:00:14]} f4 {[%emt 0:05:35]} 25. Nd2 {[%emt 0:01:09]} Qe7 {[%emt 0:02:22]} 26. Nf3 {[%emt 0:00:31]} Qf6 {[%emt 0:01:07]} 27. Qe4 {[%emt 0:02:27]} Rfe7 {[%emt 0:00:57]} 28. Qc4+ {[%emt 0:00:16]} 1-0

[Event "Kragero Resort A 2020"]
[Site "Kragero"]
[Date "2020.02.22"]
[Round "7.28"]
[White "Unneland, Mathias"]
[Black "Eliseev, Sergey"]
[Result "1/2-1/2"]
[ECO "B65"]
[WhiteElo "2175"]
[BlackElo "1947"]
[Annotator "ChessBase"]
[PlyCount "62"]
[EventDate "2020.02.19"]
[EventType "swiss"]
[EventCountry "NOR"]
[SourceTitle "playchess.com"]
[Source "ChessBase"]
[SourceQuality "1"]
[TimeControl "5400+30"]

1. e4 {[%emt 0:00:00]} c5 {[%emt 0:00:00]} 2. Nf3 {[%emt 0:00:00]} d6 {[%emt 0:00:00]} 3. d4 {[%emt 0:00:09]} Nf6 {[%emt 0:00:00]} 4. Nc3 {[%emt 0:00:11]} cxd4 {[%emt 0:00:06]} 5. Nxd4 {[%emt 0:00:10]} Nc6 {[%emt 0:00:07]} 6. Bg5 {[%emt 0:00:50]} e6 {[%emt 0:00:11]} 7. Qd2 {[%emt 0:00:24]} Be7 {[%emt 0:00:08]} 8. O-O-O {[%emt 0:00:21]} O-O {[%emt 0:00:22]} 9. f4 {[%emt 0:00:12]} Nxd4 {[%emt 0:01:09]} 10. Qxd4 {[%emt 0:00:10]} Qa5 {[%emt 0:00:08]} 11. e5 {[%emt 0:01:02]} dxe5 {[%emt 0:00:05]} 12. Qxe5 {[%emt 0:00:07]} Qxe5 {[%emt 0:00:05]} 13. fxe5 {[%emt 0:00:08]} Nd5 {[%emt 0:00:05]} 14. Bxe7 {[%emt 0:00:09]} Nxe7 {[%emt 0:00:05]} 15. Bd3 {[%emt 0:00:07]} Nd5 {[%emt 0:16:14]} 16. Nxd5 {[%emt 0:11:13]} exd5 {[%emt 0:00:06]} 17. Be2 {[%emt 0:00:08]} Be6 {[%emt 0:01:11]} 18. Bf3 {[%emt 0:00:06]} Rfd8 {[%emt 0:01:21]} 19. Rd4 {[%emt 0:00:14]} Rd7 {[%emt 0:29:26]} 20. Rhd1 {[%emt 0:00:07]} Rad8 {[%emt 0:02:22]} 21. c4 {[%emt 0:00:29]} Rc8 {[%emt 0:07:06]} 22. Kb1 {[%emt 0:00:48]} Bf5+ {[%emt 0:05:23]} 23. Ka1 {[%emt 0:00:26]} Rxc4 {[%emt 0:00:27]} 24. Rxc4 {[%emt 0:00:07]} dxc4 {[%emt 0:00:07]} 25. Rxd7 {[%emt 0:00:06]} Bxd7 {[%emt 0:00:04]} 26. Bxb7 {[%emt 0:00:10]} Kf8 {[%emt 0:00:17]} 27. Bd5 {[%emt 0:03:22]} Ke7 {[%emt 0:02:27]} 28. Kb1 {[%emt 0:19:09]} Be6 {[%emt 0:01:16]} 29. Be4 {[%emt 0:00:09]} Bd7 {[%emt 0:04:42]} 30. Bd5 {[%emt 0:01:24]} Be6 {[%emt 0:01:09]} 31. Be4 {[%emt 0:00:08]} Bd7 {[%emt 0:00:09]} 1/2-1/2

[Event "Kragero Resort A 2020"]
[Site "Kragero"]
[Date "2020.02.22"]
[Round "8.1"]
[White "Gharibyan, Mamikon"]
[Black "Holm, Kristian Stuvik"]
[Result "1/2-1/2"]
[ECO "D85"]
[WhiteElo "2405"]
[BlackElo "2467"]
[Annotator "ChessBase"]
[PlyCount "26"]
[EventDate "2020.02.19"]
[EventType "swiss"]
[EventCountry "NOR"]
[SourceTitle "playchess.com"]
[Source "ChessBase"]
[SourceQuality "1"]
[TimeControl "5400+30"]

1. d4 {[%emt 0:00:00]} Nf6 {[%emt 0:01:52]} 2. c4 {[%emt 0:00:48]} g6 {[%emt 0:00:08]} 3. Nc3 {[%emt 0:00:19]} d5 {[%emt 0:00:04]} 4. cxd5 {[%emt 0:00:42]} Nxd5 {[%emt 0:00:06]} 5. e4 {[%emt 0:00:04]} Nxc3 {[%emt 0:00:04]} 6. bxc3 {[%emt 0:00:05]} Bg7 {[%emt 0:00:05]} 7. Be3 {[%emt 0:00:32]} c5 {[%emt 0:00:05]} 8. Rc1 {[%emt 0:00:51]} Qa5 {[%emt 0:00:16]} 9. Qd2 {[%emt 0:00:10]} cxd4 {[%emt 0:00:47]} 10. cxd4 {[%emt 0:00:19]} Qxd2+ {[%emt 0:00:03]} 11. Kxd2 {[%emt 0:09:14]} O-O {[%emt 0:00:32]} 12. Bb5 {[%emt 0:01:56]} Rd8 {[%emt 0:08:36]} 13. Ne2 {[%emt 0:01:21]} Nc6 {[%emt 0:05:42]} 1/2-1/2

[Event "Kragero Resort A 2020"]
[Site "Kragero"]
[Date "2020.02.22"]
[Round "8.11"]
[White "Stanford, Maxim Barth"]
[Black "Kaasen, Tor Fredrik"]
[Result "1-0"]
[ECO "A45"]
[WhiteElo "2339"]
[BlackElo "2393"]
[Annotator "ChessBase"]
[PlyCount "73"]
[EventDate "2020.02.19"]
[EventType "swiss"]
[EventCountry "NOR"]
[SourceTitle "playchess.com"]
[Source "ChessBase"]
[SourceQuality "1"]
[TimeControl "5400+30"]

1. d4 {[%emt 0:00:00]} Nf6 {[%emt 0:02:38]} 2. Bf4 {[%emt 0:00:21]} c5 {[%emt 0:01:15]} 3. d5 {[%emt 0:00:15]} b5 {[%emt 0:00:28]} 4. c4 {[%emt 0:02:30]} e6 {[%emt 0:04:20]} 5. dxe6 {[%emt 0:02:08]} fxe6 {[%emt 0:00:17]} 6. cxb5 {[%emt 0:00:37]} a6 {[%emt 0:05:15]} 7. e4 {[%emt 0:06:37]} axb5 {[%emt 0:07:48]} 8. Nc3 {[%emt 0:01:33]} Qa5 {[%emt 0:03:49]} 9. Bxb5 {[%emt 0:06:34]} Nxe4 {[%emt 0:04:01]} 10. Nge2 {[%emt 0:00:11]} Be7 {[%emt 0:04:28]} 11. O-O {[%emt 0:01:39]} Nf6 {[%emt 0:01:44]} 12. Bd6 {[%emt 0:02:59]} Ba6 {[%emt 0:05:05]} 13. a4 {[%emt 0:04:15]} Qb6 {[%emt 0:00:32]} 14. Bxe7 {[%emt 0:00:42]} Kxe7 {[%emt 0:00:10]} 15. Nf4 {[%emt 0:01:34]} Bb7 {[%emt 0:10:03]} 16. Re1 {[%emt 0:05:58]} Kf7 {[%emt 0:05:33]} 17. Nh5 {[%emt 0:04:35]} Rg8 {[%emt 0:04:30]} 18. Re3 {[%emt 0:02:43]} Nc6 {[%emt 0:06:54]} 19. Nxf6 {[%emt 0:06:16]} gxf6 {[%emt 0:00:10]} 20. Qh5+ {[%emt 0:00:19]} Kg7 {[%emt 0:01:39]} 21. Ne4 {[%emt 0:09:03]} Ne5 {[%emt 0:06:42]} 22. Rg3+ {[%emt 0:08:38]} Ng6 {[%emt 0:01:35]} 23. Rd1 {[%emt 0:01:09]} d5 {[%emt 0:01:48]} 24. Rh3 {[%emt 0:01:39]} Rh8 {[%emt 0:05:03]} 25. Qh6+ {[%emt 0:00:41]} Kf7 {[%emt 0:00:11]} 26. Nxf6 {[%emt 0:00:25]} d4 {[%emt 0:02:39]} 27. Nh5 {[%emt 0:04:49]} Rag8 {[%emt 0:01:41]} 28. Qg5 {[%emt 0:10:15]} Qd8 {[%emt 0:00:25]} 29. Qxc5 {[%emt 0:00:33]} Bxg2 {[%emt 0:02:21]} 30. Rg3 {[%emt 0:04:56]} Nh4 {[%emt 0:02:46]} 31. Nf4 {[%emt 0:02:38]} Be4 {[%emt 0:04:39]} 32. Be2 {[%emt 0:01:19]} Nf5 {[%emt 0:01:06]} 33. Qe5 {[%emt 0:01:56]} Nxg3 {[%emt 0:02:25]} 34. hxg3 {[%emt 0:00:23]} Bd5 {[%emt 0:01:42]} 35. Bh5+ {[%emt 0:00:30]} Kf8 {[%emt 0:01:01]} 36. Rxd4 {[%emt 0:00:57]} Qg5 {[%emt 0:00:32]} 37. Rxd5 {[%emt 0:00:46]} 1-0

[Event "Kragero Resort A 2020"]
[Site "Kragero"]
[Date "2020.02.22"]
[Round "8.12"]
[White "Ranaldi, Lucas"]
[Black "Salimova, Nurgyul"]
[Result "1/2-1/2"]
[ECO "A16"]
[WhiteElo "2302"]
[BlackElo "2372"]
[Annotator "ChessBase"]
[PlyCount "71"]
[EventDate "2020.02.19"]
[EventType "swiss"]
[EventCountry "NOR"]
[SourceTitle "playchess.com"]
[Source "ChessBase"]
[SourceQuality "1"]
[TimeControl "5400+30"]

1. c4 {[%emt 0:00:15]} Nf6 {[%emt 0:00:29]} 2. g3 {[%emt 0:02:30]} g6 {[%emt 0:01:33]} 3. Bg2 {[%emt 0:02:56]} d5 {[%emt 0:03:07]} 4. cxd5 {[%emt 0:01:20]} Nxd5 {[%emt 0:01:57]} 5. Nc3 {[%emt 0:00:00]} Nb6 {[%emt 0:00:45]} 6. d3 {[%emt 0:00:00]} Bg7 {[%emt 0:00:19]} 7. Be3 {[%emt 0:02:46]} Nc6 {[%emt 0:03:43]} 8. Nf3 {[%emt 0:03:24]} O-O {[%emt 0:04:23]} 9. Qd2 {[%emt 0:02:59]} Nb4 {[%emt 0:12:22]} 10. h4 {[%emt 0:00:00]} h5 {[%emt 0:05:59]} 11. Rc1 {[%emt 0:05:51]} N4d5 {[%emt 0:04:04]} 12. Bh6 {[%emt 0:01:02]} Nf6 {[%emt 0:01:03]} 13. Bxg7 {[%emt 0:00:47]} Kxg7 {[%emt 0:00:07]} 14. d4 {[%emt 0:03:38]} c6 {[%emt 0:05:30]} 15. e4 {[%emt 0:06:20]} Bg4 {[%emt 0:03:22]} 16. Ne5 {[%emt 0:02:25]} Qd6 {[%emt 0:09:20]} 17. f3 {[%emt 0:20:35]} Be6 {[%emt 0:04:13]} 18. Kf2 {[%emt 0:08:15]} Rad8 {[%emt 0:01:24]} 19. Rhd1 {[%emt 0:00:40]} Nbd7 {[%emt 0:09:16]} 20. Nxd7 {[%emt 0:02:08]} Qxd7 {[%emt 0:01:32]} 21. Qe3 {[%emt 0:03:39]} Kh7 {[%emt 0:05:56]} 22. Rc2 {[%emt 0:00:00]} Bh3 {[%emt 0:01:49]} 23. Rcd2 {[%emt 0:00:59]} Bxg2 {[%emt 0:00:08]} 24. Kxg2 {[%emt 0:00:06]} Qe6 {[%emt 0:00:55]} 25. Qf2 {[%emt 0:04:06]} Qc4 {[%emt 0:02:40]} 26. Qe3 {[%emt 0:01:55]} Qe6 {[%emt 0:00:21]} 27. Rd3 {[%emt 0:01:59]} Rd7 {[%emt 0:01:03]} 28. b3 {[%emt 0:00:41]} Rdd8 {[%emt 0:03:08]} 29. Ne2 {[%emt 0:01:39]} Qc8 {[%emt 0:02:00]} 30. Nf4 {[%emt 0:01:24]} Qc7 {[%emt 0:13:25]} 31. d5 {[%emt 0:06:11]} a6 {[%emt 0:01:03]} 32. dxc6 {[%emt 0:07:12]} Rxd3 {[%emt 0:00:00]} 33. Qxd3 {[%emt 0:00:10]} Qxc6 {[%emt 0:00:00]} 34. e5 {[%emt 0:02:55]} Ng4 {[%emt 0:00:00]} 35. Re1 {[%emt 0:02:20]} Rc8 {[%emt 0:00:00]} 36. Re2 {[%emt 0:00:10]} 1/2-1/2